[Event "*** Titled Tuesday Blitz"]
[Site "Chess.com"]
[Date "2020.04.07"]
[Round "9"]
[White "DrMelekess"]
[Black "Alliswell998"]
[Result "1-0"]
[WhiteElo "2722"]
[BlackElo "2536"]
[TimeControl "180+1"]
[EndTime "14:45:25 PDT"]
[Termination "DrMelekess won by checkmate"]

1. d4 {[%clk 0:03:00.9]} 1... Nf6 {[%clk 0:02:59.7]} 2. Nf3 {[%clk 0:03:00.8]}
2... c5 {[%clk 0:03:00.4]} 3. d5 {[%clk 0:03:00.7]} 3... g6 {[%clk 0:02:58.2]}
4. Nc3 {[%clk 0:03:00.8]} 4... Bg7 {[%clk 0:02:58.5]} 5. e4 {[%clk 0:03:01.3]}
5... O-O {[%clk 0:02:59]} 6. Be2 {[%clk 0:03:00.5]} 6... d6 {[%clk 0:02:58.8]}
7. O-O {[%clk 0:03:00.5]} 7... Bg4 {[%clk 0:02:59.4]} 8. Nd2 {[%clk 0:03:00.4]}
8... Bxe2 {[%clk 0:02:58.9]} 9. Qxe2 {[%clk 0:03:01.3]} 9... Nbd7 {[%clk
0:02:59.3]} 10. a4 {[%clk 0:03:00.8]} 10... Ne8 {[%clk 0:02:55.1]} 11. Nc4
{[%clk 0:03:00.8]} 11... Nc7 {[%clk 0:02:52.1]} 12. Bf4 {[%clk 0:03:00.7]} 12...
Na6 {[%clk 0:02:48]} 13. Rfd1 {[%clk 0:02:59.6]} 13... Nb4 {[%clk 0:02:48.3]}
14. Nb1 {[%clk 0:02:42.3]} 14... Nb6 {[%clk 0:02:47.1]} 15. c3 {[%clk
0:02:42.2]} 15... Nxc4 {[%clk 0:02:44.9]} 16. Qxc4 {[%clk 0:02:43.1]} 16... Na6
{[%clk 0:02:41.4]} 17. Nd2 {[%clk 0:02:43.2]} 17... Qd7 {[%clk 0:02:35.6]} 18.
Qe2 {[%clk 0:02:38.6]} 18... Rfe8 {[%clk 0:02:28.8]} 19. h4 {[%clk 0:02:37.2]}
19... h5 {[%clk 0:02:27.8]} 20. Nc4 {[%clk 0:02:36.7]} 20... Nc7 {[%clk
0:02:26.8]} 21. e5 {[%clk 0:02:31.3]} 21... Qf5 {[%clk 0:02:24.1]} 22. g3 {[%clk
0:02:29.6]} 22... dxe5 {[%clk 0:02:23.4]} 23. Nxe5 {[%clk 0:02:16.8]} 23... Rac8
{[%clk 0:02:11.7]} 24. c4 {[%clk 0:02:09.1]} 24... Red8 {[%clk 0:01:58.6]} 25.
Ra3 {[%clk 0:02:02.6]} 25... Ne8 {[%clk 0:01:58.6]} 26. Rf3 {[%clk 0:02:01.7]}
26... Qh3 {[%clk 0:01:54.2]} 27. Bg5 {[%clk 0:01:37.9]} 27... Nf6 {[%clk
0:01:44.6]} 28. g4 {[%clk 0:01:35.6]} 28... hxg4 {[%clk 0:01:37.8]} 29. Rxh3
{[%clk 0:01:34.9]} 29... gxh3 {[%clk 0:01:38.7]} 30. Rd3 {[%clk 0:01:29.1]}
30... Nh5 {[%clk 0:01:28.3]} 31. Rxh3 {[%clk 0:01:11.6]} 31... Re8 {[%clk
0:01:26.2]} 32. Nxf7 {[%clk 0:00:49.6]} 32... Kxf7 {[%clk 0:01:25.9]} 33. Qe6+
{[%clk 0:00:50]} 33... Kf8 {[%clk 0:01:26]} 34. d6 {[%clk 0:00:50.9]} 34... exd6
{[%clk 0:01:23.1]} 35. Rf3+ {[%clk 0:00:50]} 35... Nf6 {[%clk 0:01:22.6]} 36.
Rxf6+ {[%clk 0:00:49.8]} 36... Bxf6 {[%clk 0:01:23.1]} 37. Bh6+ {[%clk
0:00:48.8]} 37... Bg7 {[%clk 0:01:22.3]} 38. Qf6+ {[%clk 0:00:49.7]} 38... Kg8
{[%clk 0:01:22.1]} 39. Qxg7# {[%clk 0:00:50.6]} 1-0

[Event "*** Titled Tuesday Blitz"]
[Site "Chess.com"]
[Date "2020.04.07"]
[Round "9"]
[White "VALPARAISO37"]
[Black "AsaHoffmann"]
[Result "0-1"]
[WhiteElo "2278"]
[BlackElo "2255"]
[TimeControl "180+1"]
[EndTime "14:45:29 PDT"]
[Termination "AsaHoffmann won by checkmate"]

1. d4 {[%clk 0:03:00.9]} 1... Nf6 {[%clk 0:02:57.5]} 2. c4 {[%clk 0:02:58.1]}
2... c5 {[%clk 0:02:56.8]} 3. d5 {[%clk 0:02:57.9]} 3... e5 {[%clk 0:02:56.4]}
4. Nc3 {[%clk 0:02:57.4]} 4... d6 {[%clk 0:02:55.7]} 5. e4 {[%clk 0:02:56.9]}
5... Be7 {[%clk 0:02:55.4]} 6. h3 {[%clk 0:02:55.5]} 6... Nbd7 {[%clk
0:02:54.7]} 7. Bd3 {[%clk 0:02:54.9]} 7... Nf8 {[%clk 0:02:54.2]} 8. h4 {[%clk
0:02:55.3]} 8... h6 {[%clk 0:02:52.3]} 9. Nge2 {[%clk 0:02:50]} 9... a6 {[%clk
0:02:46.7]} 10. f3 {[%clk 0:02:47.6]} 10... Nh5 {[%clk 0:02:44.5]} 11. g3 {[%clk
0:02:45]} 11... Bd7 {[%clk 0:02:42.2]} 12. a4 {[%clk 0:02:44]} 12... b6 {[%clk
0:02:41.6]} 13. Be3 {[%clk 0:02:43.7]} 13... g5 {[%clk 0:02:36.4]} 14. g4 {[%clk
0:02:33.9]} 14... Nf4 {[%clk 0:02:34.7]} 15. h5 {[%clk 0:02:33.7]} 15... Rb8
{[%clk 0:02:22.3]} 16. Ng3 {[%clk 0:02:32.3]} 16... Nh7 {[%clk 0:02:11.3]} 17.
Ra3 {[%clk 0:02:29]} 17... Nf6 {[%clk 0:02:08.8]} 18. Rg1 {[%clk 0:02:07.8]}
18... Kf8 {[%clk 0:02:04.7]} 19. Bf1 {[%clk 0:02:06.1]} 19... Kg7 {[%clk
0:02:03.4]} 20. Rh1 {[%clk 0:01:55.6]} 20... Qc7 {[%clk 0:02:00.4]} 21. Rh2
{[%clk 0:01:53.7]} 21... Rb7 {[%clk 0:01:59.9]} 22. Bxf4 {[%clk 0:01:51.1]}
22... exf4 {[%clk 0:01:59.3]} 23. Nf5+ {[%clk 0:01:51]} 23... Bxf5 {[%clk
0:01:58.7]} 24. exf5 {[%clk 0:01:51.3]} 24... Nd7 {[%clk 0:01:58.4]} 25. Ne4
{[%clk 0:01:49.9]} 25... Bf6 {[%clk 0:01:56.5]} 26. Bd3 {[%clk 0:01:45.8]} 26...
Re8 {[%clk 0:01:52.6]} 27. Kf1 {[%clk 0:01:45.6]} 27... Ne5 {[%clk 0:01:50.6]}
28. Rc2 {[%clk 0:01:42.9]} 28... a5 {[%clk 0:01:40.2]} 29. Rb3 {[%clk
0:01:40.5]} 29... Qd8 {[%clk 0:01:39.1]} 30. Rb5 {[%clk 0:01:39.8]} 30... Rbe7
{[%clk 0:01:38.1]} 31. Be2 {[%clk 0:01:33.6]} 31... Nxg4 {[%clk 0:01:35]} 32.
Qd3 {[%clk 0:01:08.6]} 32... Ne3+ {[%clk 0:01:31.3]} 33. Kg1 {[%clk 0:01:06.8]}
33... Nxc2 {[%clk 0:01:29.7]} 34. Qxc2 {[%clk 0:01:06.8]} 34... Rxe4 {[%clk
0:01:20.3]} 35. fxe4 {[%clk 0:01:06.1]} 35... Bd4+ {[%clk 0:01:19.6]} 36. Kg2
{[%clk 0:01:05.4]} 36... g4 {[%clk 0:01:19]} 37. Bxg4 {[%clk 0:01:03.5]} 37...
Qh4 {[%clk 0:01:17.5]} 38. Qe2 {[%clk 0:01:01.2]} 38... Qg3+ {[%clk 0:01:16.2]}
39. Kh1 {[%clk 0:01:00.5]} 39... Qg1# {[%clk 0:01:14.4]} 0-1

[Event "*** Titled Tuesday Blitz"]
[Site "Chess.com"]
[Date "2020.04.07"]
[Round "9"]
[White "Flawless_Fighter"]
[Black "Evgeny81"]
[Result "1-0"]
[WhiteElo "2582"]
[BlackElo "2726"]
[TimeControl "180+1"]
[EndTime "14:45:32 PDT"]
[Termination "Flawless_Fighter won by resignation"]

1. e4 {[%clk 0:03:00.9]} 1... e5 {[%clk 0:02:59.9]} 2. Nf3 {[%clk 0:03:00.5]}
2... Nc6 {[%clk 0:03:00.5]} 3. Bb5 {[%clk 0:03:00.7]} 3... a6 {[%clk 0:03:00.8]}
4. Ba4 {[%clk 0:03:00.8]} 4... Nf6 {[%clk 0:03:01]} 5. O-O {[%clk 0:03:00.5]}
5... Be7 {[%clk 0:03:01.1]} 6. Re1 {[%clk 0:03:00.8]} 6... b5 {[%clk 0:03:01.5]}
7. Bb3 {[%clk 0:03:01.4]} 7... d6 {[%clk 0:03:02.1]} 8. c3 {[%clk 0:03:01.5]}
8... Na5 {[%clk 0:03:02.7]} 9. Bc2 {[%clk 0:02:59.8]} 9... c5 {[%clk 0:03:03.3]}
10. d4 {[%clk 0:02:54.3]} 10... Qc7 {[%clk 0:03:03.9]} 11. Nbd2 {[%clk
0:02:37.6]} 11... O-O {[%clk 0:03:03.7]} 12. h3 {[%clk 0:02:37]} 12... Be6
{[%clk 0:03:01.5]} 13. d5 {[%clk 0:02:36.2]} 13... Bd7 {[%clk 0:03:01.9]} 14. b3
{[%clk 0:02:36.8]} 14... c4 {[%clk 0:03:02]} 15. b4 {[%clk 0:02:36.7]} 15... Nb7
{[%clk 0:03:02.7]} 16. a4 {[%clk 0:02:37.3]} 16... Rfb8 {[%clk 0:03:02.6]} 17.
a5 {[%clk 0:02:32.3]} 17... Ne8 {[%clk 0:03:01.8]} 18. Nf1 {[%clk 0:02:32.2]}
18... g6 {[%clk 0:03:01.3]} 19. g4 {[%clk 0:02:30.7]} 19... Ng7 {[%clk
0:03:00.6]} 20. Be3 {[%clk 0:02:29.7]} 20... Nd8 {[%clk 0:03:00.8]} 21. Bb6
{[%clk 0:02:27.5]} 21... Qc8 {[%clk 0:03:00.1]} 22. Ng3 {[%clk 0:02:26.7]} 22...
f6 {[%clk 0:03:00.3]} 23. Qd2 {[%clk 0:02:24.1]} 23... Nf7 {[%clk 0:03:00.6]}
24. Kg2 {[%clk 0:02:13]} 24... h5 {[%clk 0:02:58.5]} 25. Nh4 {[%clk 0:02:03.8]}
25... Kh7 {[%clk 0:02:27.7]} 26. gxh5 {[%clk 0:01:51.5]} 26... Bxh3+ {[%clk
0:02:24.2]} 27. Kh2 {[%clk 0:01:52]} 27... Nxh5 {[%clk 0:02:19.3]} 28. Nxh5
{[%clk 0:01:49.3]} 28... gxh5 {[%clk 0:02:20.2]} 29. Rg1 {[%clk 0:01:47.4]}
29... Ng5 {[%clk 0:01:32.4]} 30. f4 {[%clk 0:01:46.1]} 30... Bf1 {[%clk
0:01:31.3]} 31. Rg3 {[%clk 0:01:31.2]} 31... exf4 {[%clk 0:01:25.4]} 32. Qxf4
{[%clk 0:01:21.2]} 32... Bd3 {[%clk 0:01:06.2]} 33. Rxg5 {[%clk 0:01:07.6]} 1-0

[Event "*** Titled Tuesday Blitz"]
[Site "Chess.com"]
[Date "2020.04.07"]
[Round "9"]
[White "hedgehog280"]
[Black "youngKID"]
[Result "1/2-1/2"]
[WhiteElo "2654"]
[BlackElo "2820"]
[TimeControl "180+1"]
[EndTime "14:45:36 PDT"]
[Termination "Game drawn by agreement"]

1. c4 {[%clk 0:02:59.6]} 1... Nf6 {[%clk 0:02:58.6]} 2. g3 {[%clk 0:03:00.4]}
2... c5 {[%clk 0:02:58.4]} 3. Bg2 {[%clk 0:03:01]} 3... g6 {[%clk 0:02:58.4]} 4.
Nf3 {[%clk 0:03:01.5]} 4... Nc6 {[%clk 0:02:58.9]} 5. O-O {[%clk 0:03:01.5]}
5... Bg7 {[%clk 0:02:59.4]} 6. Nc3 {[%clk 0:03:01.8]} 6... h5 {[%clk 0:02:58.4]}
7. h4 {[%clk 0:03:00.6]} 7... O-O {[%clk 0:02:58.3]} 8. d4 {[%clk 0:02:51]} 8...
cxd4 {[%clk 0:02:59.2]} 9. Nxd4 {[%clk 0:02:51.3]} 9... d6 {[%clk 0:02:59.8]}
10. Nxc6 {[%clk 0:02:43.7]} 10... bxc6 {[%clk 0:03:00.7]} 11. b3 {[%clk
0:02:44.4]} 11... Bd7 {[%clk 0:02:57.4]} 12. Bb2 {[%clk 0:02:45]} 12... Rc8
{[%clk 0:02:57.5]} 13. Qd2 {[%clk 0:02:43.1]} 13... Qa5 {[%clk 0:02:53.8]} 14.
Rad1 {[%clk 0:02:42.5]} 14... Rfe8 {[%clk 0:02:53.9]} 15. Rfe1 {[%clk
0:02:41.6]} 15... c5 {[%clk 0:02:28.3]} 16. e4 {[%clk 0:02:36.8]} 16... Ng4
{[%clk 0:02:27.2]} 17. Nd5 {[%clk 0:02:37.1]} 17... Qxd2 {[%clk 0:02:25.6]} 18.
Rxd2 {[%clk 0:02:36.7]} 18... Bxb2 {[%clk 0:02:23.4]} 19. Rxb2 {[%clk
0:02:36.8]} 19... Bc6 {[%clk 0:02:23.9]} 20. Bh3 {[%clk 0:02:32.7]} 20... Kg7
{[%clk 0:02:04]} 21. Kg2 {[%clk 0:02:04.6]} 21... Rb8 {[%clk 0:02:00.2]} 22.
Bxg4 {[%clk 0:01:38]} 22... hxg4 {[%clk 0:01:58.4]} 23. Rbb1 {[%clk 0:01:35.1]}
23... a5 {[%clk 0:01:55.1]} 24. Nc3 {[%clk 0:01:33.8]} 24... e6 {[%clk
0:01:50.1]} 25. f3 {[%clk 0:01:28.4]} 25... gxf3+ {[%clk 0:01:46.9]} 26. Kxf3
{[%clk 0:01:29.3]} 26... Kf6 {[%clk 0:01:42.6]} 27. g4 {[%clk 0:01:27]} 27...
Rh8 {[%clk 0:01:41.6]} 28. Kg3 {[%clk 0:01:25.2]} 28... Ke5 {[%clk 0:01:39.6]}
29. Nd5 {[%clk 0:01:21.9]} 29... a4 {[%clk 0:01:30.2]} 30. b4 {[%clk 0:01:16.8]}
30... cxb4 {[%clk 0:01:18.2]} 31. Nxb4 {[%clk 0:01:16.4]} 31... Ba8 {[%clk
0:01:16.5]} 32. Nd3+ {[%clk 0:01:07]} 32... Kd4 {[%clk 0:01:06.6]} 33. Rbd1
{[%clk 0:01:07.9]} 33... Kxc4 {[%clk 0:01:05.8]} 34. e5 {[%clk 0:01:07.6]} 34...
d5 {[%clk 0:01:05.7]} 35. Re2 {[%clk 0:01:06.6]} 1/2-1/2

[Event "*** Titled Tuesday Blitz"]
[Site "Chess.com"]
[Date "2020.04.07"]
[Round "9"]
[White "GHANDEEVAM2003"]
[Black "IMTominho"]
[Result "0-1"]
[WhiteElo "2958"]
[BlackElo "2844"]
[TimeControl "180+1"]
[EndTime "14:45:37 PDT"]
[Termination "IMTominho won by resignation"]

1. e4 {[%clk 0:03:00.9]} 1... c5 {[%clk 0:02:56.1]} 2. Nf3 {[%clk 0:03:01]} 2...
e6 {[%clk 0:02:55.7]} 3. d4 {[%clk 0:03:00.5]} 3... cxd4 {[%clk 0:02:55.4]} 4.
Nxd4 {[%clk 0:03:01.4]} 4... a6 {[%clk 0:02:53.9]} 5. Bd3 {[%clk 0:02:58.9]}
5... Nf6 {[%clk 0:02:51.6]} 6. O-O {[%clk 0:02:58.2]} 6... d6 {[%clk 0:02:50.6]}
7. c4 {[%clk 0:02:55.6]} 7... b6 {[%clk 0:02:48.5]} 8. Nc3 {[%clk 0:02:53.5]}
8... Bb7 {[%clk 0:02:48.6]} 9. Be3 {[%clk 0:02:52.9]} 9... Nbd7 {[%clk
0:02:46.9]} 10. f3 {[%clk 0:02:51.2]} 10... Be7 {[%clk 0:02:46.2]} 11. Qd2
{[%clk 0:02:50.7]} 11... O-O {[%clk 0:02:45.8]} 12. Rfd1 {[%clk 0:02:50.7]}
12... Rc8 {[%clk 0:02:42.8]} 13. b3 {[%clk 0:02:49.2]} 13... Re8 {[%clk
0:02:40.2]} 14. Rac1 {[%clk 0:02:48.7]} 14... Qc7 {[%clk 0:02:40.4]} 15. Kh1
{[%clk 0:02:47]} 15... Qb8 {[%clk 0:02:38.1]} 16. Bf1 {[%clk 0:02:43.9]} 16...
Ba8 {[%clk 0:02:35.6]} 17. g4 {[%clk 0:02:39.8]} 17... h6 {[%clk 0:02:32.5]} 18.
Bg2 {[%clk 0:02:37.6]} 18... Nf8 {[%clk 0:02:30.3]} 19. h4 {[%clk 0:02:34.4]}
19... Ng6 {[%clk 0:02:26.8]} 20. Qf2 {[%clk 0:02:31.5]} 20... d5 {[%clk
0:02:19.5]} 21. exd5 {[%clk 0:02:05.2]} 21... exd5 {[%clk 0:02:20.4]} 22. Nf5
{[%clk 0:02:05.3]} 22... dxc4 {[%clk 0:02:13.7]} 23. Bxb6 {[%clk 0:01:23.6]}
23... Ba3 {[%clk 0:02:12.6]} 24. Rb1 {[%clk 0:01:22.9]} 24... Nf4 {[%clk
0:02:10.4]} 25. Bd4 {[%clk 0:01:18.3]} 25... Nxg2 {[%clk 0:02:03.8]} 26. Qxg2
{[%clk 0:00:59.2]} 26... Qf4 {[%clk 0:02:01.4]} 27. Rf1 {[%clk 0:00:59.5]} 27...
Nxg4 {[%clk 0:01:58.1]} 28. Nxg7 {[%clk 0:00:52.6]} 28... Qxd4 {[%clk
0:01:49.6]} 29. Nxe8 {[%clk 0:00:49.1]} 29... Rxe8 {[%clk 0:01:50.5]} 30. Rbe1
{[%clk 0:00:32.9]} 30... Rxe1 {[%clk 0:01:39.3]} 31. Rxe1 {[%clk 0:00:33.8]}
31... Kf8 {[%clk 0:01:39]} 32. Ne4 {[%clk 0:00:29.8]} 32... Bxe4 {[%clk
0:01:31.9]} 33. Qxg4 {[%clk 0:00:28.9]} 33... Bxf3+ {[%clk 0:01:31.5]} 34. Qxf3
{[%clk 0:00:29.8]} 34... Qxh4+ {[%clk 0:01:31.6]} 35. Kg2 {[%clk 0:00:26.9]}
35... Qxe1 {[%clk 0:01:31.7]} 36. Qa8+ {[%clk 0:00:25.3]} 36... Kg7 {[%clk
0:01:31.5]} 0-1

[Event "*** Titled Tuesday Blitz"]
[Site "Chess.com"]
[Date "2020.04.07"]
[Round "9"]
[White "SPEEDSKATER"]
[Black "nabukatnezarr"]
[Result "0-1"]
[WhiteElo "2767"]
[BlackElo "2584"]
[TimeControl "180+1"]
[EndTime "14:45:40 PDT"]
[Termination "nabukatnezarr won on time"]

1. d4 {[%clk 0:03:00.9]} 1... Nf6 {[%clk 0:02:59.9]} 2. c4 {[%clk 0:03:00.6]}
2... e6 {[%clk 0:03:00.5]} 3. Nf3 {[%clk 0:02:59.9]} 3... c5 {[%clk 0:03:00.2]}
4. d5 {[%clk 0:02:59.9]} 4... exd5 {[%clk 0:03:01.1]} 5. cxd5 {[%clk 0:03:00.6]}
5... d6 {[%clk 0:03:01]} 6. Nc3 {[%clk 0:03:01]} 6... g6 {[%clk 0:03:00.5]} 7.
Bf4 {[%clk 0:03:00.4]} 7... a6 {[%clk 0:02:55.3]} 8. a4 {[%clk 0:02:59.8]} 8...
Bg7 {[%clk 0:02:55.5]} 9. h3 {[%clk 0:02:59.4]} 9... O-O {[%clk 0:02:54.7]} 10.
e3 {[%clk 0:02:59]} 10... Ne8 {[%clk 0:02:53.4]} 11. Be2 {[%clk 0:02:58.4]}
11... Nd7 {[%clk 0:02:53.8]} 12. O-O {[%clk 0:02:57.9]} 12... Ne5 {[%clk
0:02:54.2]} 13. Nd2 {[%clk 0:02:57]} 13... f5 {[%clk 0:02:48.7]} 14. Bh2 {[%clk
0:02:55]} 14... Bd7 {[%clk 0:02:43.7]} 15. Kh1 {[%clk 0:02:53.9]} 15... Rb8
{[%clk 0:02:38.5]} 16. a5 {[%clk 0:02:53.6]} 16... Nc7 {[%clk 0:02:34.7]} 17. f4
{[%clk 0:02:52.6]} 17... Nf7 {[%clk 0:02:34.8]} 18. e4 {[%clk 0:02:52.5]} 18...
Nb5 {[%clk 0:02:25.7]} 19. Nxb5 {[%clk 0:02:45.8]} 19... Bxb5 {[%clk 0:02:26.6]}
20. Bxb5 {[%clk 0:02:40.5]} 20... axb5 {[%clk 0:02:27.5]} 21. Qb3 {[%clk
0:02:40.1]} 21... Qd7 {[%clk 0:02:23.5]} 22. a6 {[%clk 0:02:38.7]} 22... bxa6
{[%clk 0:02:09.2]} 23. Rxa6 {[%clk 0:02:39.6]} 23... Ra8 {[%clk 0:02:02.5]} 24.
Rfa1 {[%clk 0:02:38]} 24... Rxa6 {[%clk 0:02:01]} 25. Rxa6 {[%clk 0:02:38.9]}
25... fxe4 {[%clk 0:01:48.9]} 26. Nxe4 {[%clk 0:02:37.1]} 26... Re8 {[%clk
0:01:46.8]} 27. Qc2 {[%clk 0:02:27.9]} 27... Qf5 {[%clk 0:01:28.3]} 0-1

[Event "*** Titled Tuesday Blitz"]
[Site "Chess.com"]
[Date "2020.04.07"]
[Round "9"]
[White "Resignify"]
[Black "JacekDubiel"]
[Result "0-1"]
[WhiteElo "2217"]
[BlackElo "2398"]
[TimeControl "180+1"]
[EndTime "14:45:40 PDT"]
[Termination "JacekDubiel won by resignation"]

1. e4 {[%clk 0:03:00.9]} 1... c5 {[%clk 0:03:00.1]} 2. Nc3 {[%clk 0:03:00.3]}
2... Nc6 {[%clk 0:02:59.3]} 3. g3 {[%clk 0:03:00.5]} 3... g6 {[%clk 0:02:59.6]}
4. Bg2 {[%clk 0:03:00.5]} 4... Bg7 {[%clk 0:03:00]} 5. d3 {[%clk 0:03:01.1]}
5... d6 {[%clk 0:03:00.4]} 6. f4 {[%clk 0:03:00.5]} 6... Rb8 {[%clk 0:03:00.8]}
7. Nf3 {[%clk 0:02:58.2]} 7... b5 {[%clk 0:03:00.4]} 8. Nd2 {[%clk 0:02:53.1]}
8... e5 {[%clk 0:02:55.8]} 9. f5 {[%clk 0:02:41.7]} 9... gxf5 {[%clk 0:02:50.3]}
10. exf5 {[%clk 0:02:41]} 10... Nd4 {[%clk 0:02:50.6]} 11. O-O {[%clk
0:02:22.2]} 11... Bxf5 {[%clk 0:02:47.2]} 12. Nde4 {[%clk 0:01:57.3]} 12... Bg6
{[%clk 0:02:19.1]} 13. Nd5 {[%clk 0:01:43.5]} 13... Ne6 {[%clk 0:02:08.7]} 14.
a4 {[%clk 0:01:24]} 14... b4 {[%clk 0:02:05.8]} 15. c3 {[%clk 0:01:10.4]} 15...
f5 {[%clk 0:02:01.7]} 16. Nd2 {[%clk 0:01:07.5]} 16... bxc3 {[%clk 0:02:01.7]}
17. bxc3 {[%clk 0:01:08.4]} 17... Ne7 {[%clk 0:01:58.4]} 18. Nc4 {[%clk
0:01:04.8]} 18... O-O {[%clk 0:01:40.7]} 19. a5 {[%clk 0:00:42.5]} 19... Kh8
{[%clk 0:01:39.6]} 20. Be3 {[%clk 0:00:30.5]} 20... Nxd5 {[%clk 0:01:37.1]} 21.
Bxd5 {[%clk 0:00:29.8]} 21... Nc7 {[%clk 0:01:37.7]} 22. Qf3 {[%clk 0:00:14.7]}
22... e4 {[%clk 0:01:33]} 23. dxe4 {[%clk 0:00:14.1]} 23... fxe4 {[%clk
0:01:33.9]} 24. Qd1 {[%clk 0:00:09.7]} 24... Rxf1+ {[%clk 0:01:32.6]} 25. Kxf1
{[%clk 0:00:09]} 25... Nxd5 {[%clk 0:01:30.9]} 26. Qxd5 {[%clk 0:00:08.6]} 26...
Bf7 {[%clk 0:01:31.5]} 27. Qxd6 {[%clk 0:00:05.6]} 27... Bxc4+ {[%clk
0:01:30.2]} 0-1

[Event "*** Titled Tuesday Blitz"]
[Site "Chess.com"]
[Date "2020.04.07"]
[Round "9"]
[White "Eltaj_Safarli"]
[Black "Khamrakulov_Djurabek"]
[Result "1-0"]
[WhiteElo "3060"]
[BlackElo "2899"]
[TimeControl "180+1"]
[EndTime "14:45:41 PDT"]
[Termination "Eltaj_Safarli won by resignation"]

1. e4 {[%clk 0:03:00.3]} 1... c6 {[%clk 0:03:00.1]} 2. d4 {[%clk 0:02:59.5]}
2... d5 {[%clk 0:03:00.7]} 3. exd5 {[%clk 0:03:00.4]} 3... cxd5 {[%clk 0:03:01]}
4. c4 {[%clk 0:02:59.9]} 4... Nf6 {[%clk 0:03:00.6]} 5. Nc3 {[%clk 0:03:00.8]}
5... e6 {[%clk 0:03:01]} 6. Nf3 {[%clk 0:03:00]} 6... Bb4 {[%clk 0:03:01]} 7.
cxd5 {[%clk 0:02:59.5]} 7... Nxd5 {[%clk 0:03:01.9]} 8. Bd2 {[%clk 0:02:58.6]}
8... Nc6 {[%clk 0:03:01.7]} 9. Bd3 {[%clk 0:02:58.9]} 9... Be7 {[%clk
0:03:01.1]} 10. O-O {[%clk 0:02:58.8]} 10... O-O {[%clk 0:03:00.1]} 11. Re1
{[%clk 0:02:58.4]} 11... Nf6 {[%clk 0:02:58.6]} 12. Bg5 {[%clk 0:02:56.8]} 12...
b6 {[%clk 0:02:53.9]} 13. Rc1 {[%clk 0:02:53.8]} 13... Bb7 {[%clk 0:02:53.6]}
14. Bb1 {[%clk 0:02:47.1]} 14... Rc8 {[%clk 0:02:48.5]} 15. a3 {[%clk
0:02:42.4]} 15... Qd6 {[%clk 0:02:28.8]} 16. Qd3 {[%clk 0:02:35.4]} 16... g6
{[%clk 0:02:28.2]} 17. h4 {[%clk 0:02:29.8]} 17... Rfd8 {[%clk 0:02:23.5]} 18.
Rcd1 {[%clk 0:02:26.9]} 18... Nh5 {[%clk 0:02:13.4]} 19. Ba2 {[%clk 0:02:22.3]}
19... Bxg5 {[%clk 0:02:10.7]} 20. hxg5 {[%clk 0:02:23.2]} 20... Ne7 {[%clk
0:02:06.8]} 21. Ne5 {[%clk 0:02:19.8]} 21... Nf4 {[%clk 0:01:58.4]} 22. Qg3
{[%clk 0:02:15.3]} 22... Nxg2 {[%clk 0:01:58]} 23. Ne4 {[%clk 0:02:13.3]} 23...
Bxe4 {[%clk 0:01:26]} 24. Rxe4 {[%clk 0:02:14.2]} 24... Rc2 {[%clk 0:01:25.3]}
25. Kxg2 {[%clk 0:02:06.5]} 25... Rxb2 {[%clk 0:01:22.9]} 26. Qf3 {[%clk
0:02:06.7]} 26... Nf5 {[%clk 0:01:21.3]} 27. Nxf7 {[%clk 0:02:02.9]} 27... Kxf7
{[%clk 0:01:10.3]} 28. Bxe6+ {[%clk 0:01:55.5]} 28... Kg7 {[%clk 0:01:04.9]} 29.
Bxf5 {[%clk 0:01:50.6]} 29... gxf5 {[%clk 0:01:00.1]} 30. Re5 {[%clk 0:01:50.8]}
30... Rf8 {[%clk 0:00:46.7]} 31. Rh1 {[%clk 0:01:39.4]} 31... Rf7 {[%clk
0:00:29]} 32. Rxf5 {[%clk 0:01:36.9]} 32... Rxf5 {[%clk 0:00:24.6]} 33. Qxf5
{[%clk 0:01:37.8]} 33... Qc6+ {[%clk 0:00:24.5]} 34. d5 {[%clk 0:01:34.8]} 34...
Qg6 {[%clk 0:00:24.5]} 35. Qe5+ {[%clk 0:01:34.7]} 35... Kf7 {[%clk 0:00:17.7]}
36. Qxb2 {[%clk 0:01:34]} 1-0

[Event "*** Titled Tuesday Blitz"]
[Site "Chess.com"]
[Date "2020.04.07"]
[Round "9"]
[White "Euwe1234"]
[Black "ruslansezdbekov"]
[Result "0-1"]
[WhiteElo "2189"]
[BlackElo "2588"]
[TimeControl "180+1"]
[EndTime "14:45:42 PDT"]
[Termination "ruslansezdbekov won by resignation"]

1. e4 {[%clk 0:03:00.9]} 1... e5 {[%clk 0:02:59.9]} 2. Nf3 {[%clk 0:03:00.8]}
2... Nc6 {[%clk 0:03:00]} 3. Bc4 {[%clk 0:03:01]} 3... Nf6 {[%clk 0:02:59.5]} 4.
O-O {[%clk 0:03:00.3]} 4... Nxe4 {[%clk 0:02:57.6]} 5. d4 {[%clk 0:02:53.2]}
5... d5 {[%clk 0:02:56.9]} 6. Bb5 {[%clk 0:02:53.2]} 6... exd4 {[%clk
0:02:55.1]} 7. Nxd4 {[%clk 0:02:52]} 7... Bd7 {[%clk 0:02:55.1]} 8. c4 {[%clk
0:02:48.7]} 8... Bc5 {[%clk 0:02:45.3]} 9. Bxc6 {[%clk 0:02:29.3]} 9... bxc6
{[%clk 0:02:44.5]} 10. Nc3 {[%clk 0:02:29.5]} 10... O-O {[%clk 0:02:41.1]} 11.
Nxe4 {[%clk 0:02:28.4]} 11... dxe4 {[%clk 0:02:40.8]} 12. Be3 {[%clk 0:02:28.6]}
12... Qe7 {[%clk 0:02:38.8]} 13. Qh5 {[%clk 0:02:21.3]} 13... Bd6 {[%clk
0:02:32.9]} 14. Rad1 {[%clk 0:02:15.7]} 14... Rab8 {[%clk 0:02:27.5]} 15. b3
{[%clk 0:02:14.8]} 15... f5 {[%clk 0:02:18.3]} 16. Bg5 {[%clk 0:02:07.1]} 16...
Qe5 {[%clk 0:02:13.3]} 17. f4 {[%clk 0:01:54.9]} 17... Qa5 {[%clk 0:01:57.7]}
18. Qe2 {[%clk 0:01:36]} 18... c5 {[%clk 0:01:53.4]} 19. Nc2 {[%clk 0:01:29.4]}
19... Qxa2 {[%clk 0:01:53.4]} 20. Be7 {[%clk 0:01:01.3]} 20... Bxe7 {[%clk
0:01:47.7]} 21. Rxd7 {[%clk 0:01:01.2]} 21... Bd6 {[%clk 0:01:47.5]} 22. Qf2
{[%clk 0:00:59]} 22... Rxb3 {[%clk 0:01:43.7]} 23. Kh1 {[%clk 0:00:54.1]} 23...
Rb2 {[%clk 0:01:43.2]} 24. Qg3 {[%clk 0:00:53.4]} 24... Rf7 {[%clk 0:01:39.1]}
25. Rxf7 {[%clk 0:00:34.3]} 25... Kxf7 {[%clk 0:01:38]} 26. Ne3 {[%clk
0:00:34.5]} 26... Rb1 {[%clk 0:01:36.5]} 27. Qg5 {[%clk 0:00:22.2]} 27... Rxf1+
{[%clk 0:01:32.7]} 28. Nxf1 {[%clk 0:00:22.4]} 28... g6 {[%clk 0:01:33.1]} 29.
Qh6 {[%clk 0:00:22.1]} 29... Kg8 {[%clk 0:01:32.9]} 30. Qg5 {[%clk 0:00:20.8]}
30... Qf2 {[%clk 0:01:25.3]} 0-1